[Event "2nd Namma Bengaluru Open-A 2025"]
[Site "Bengaluru"]
[Date "2025.04.11"]
[Round "2.27"]
[White "Srihari L R"]
[Black "Uddipan Roy"]
[Result "1-0"]
[Annotator "TA"]
[ECO "B92"]
[WhiteElo "2481"]
[BlackElo "2079"]
[PlyCount "105"]
[EventDate "2025.04.10"]
[EventType "swiss"]
[EventCountry "IND"]
[SourceTitle "playchess.com"]
[Source "ChessBase"]
[SourceQuality "1"]
[TimeControl "5400+30"]

{[%evp 16,105,15,0,12,18,14,9,17,20,17,11,48,55,58,52,48,39,48,0,5,13,13,2,3,13,22,17,56,62,55,59,208,208,208,202,200,206,222,218,218,218,218,218,233,233,233,226,226,226,695,666,591,582,772,681,935,925,1860,1792,1572,1649,1613,1569,1391,1403,5704,5114,29970,29969,29968,6717,29981,29982,29976,29976,29984,29985,29986,29987,29987,29988,29988,29989,29989,29989,29989,29990,29990,29991,29997,29998]} 1. e4 {[%emt 0:00:07]} c5 {[%emt 0:03:29]} 2. Nf3 {[%emt 0:00:11]} d6 {[%emt 0:00:06]} 3. d4 {[%emt 0:00:15]} Nf6 {[%emt 0:00:32]} 4. Nc3 {[%emt 0:00:09]} cxd4 {[%emt 0:00:04]} 5. Nxd4 {[%emt 0:00:10]} a6 {[%emt 0:00:03]} 6. Be2 {[%emt 0:00:16]} e5 {[%emt 0:00:33]} 7. Nb3 {[%emt 0:00:12]} Be7 {[%emt 0:00:41]} 8. Qd3 {[%emt 0:00:10]} O-O {[%emt 0:02:21]} 9. O-O {[%emt 0:00:20]} Nc6 {[%emt 0:06:10] B92: Sicilian Najdorf: 6 Be2.} 10. Rd1 {[%emt 0:01:09]} Nb4 {[%emt 0:09:36]} 11. Qd2 {[%emt 0:01:36]} Be6 {[%emt 0:01:22] The position is equal.} 12. a3 {[%emt 0:04:31]} Nc6 {[%emt 0:00:09]} 13. Qd3 {[%emt 0:07:18]} Bxb3 {[%emt 0:23:40]} 14. cxb3 {[%emt 0:00:31]} Nd4 {[%emt 0:00:04]} 15. b4 {[%emt 0:01:36]} d5 {[%emt 0:06:09]} 16. exd5 {[%emt 0:19:22]} Nxd5 {[%emt 0:00:48]} 17. Qe4 $146 {[%emt 0:12:30][%csl LRd5,LRe5]} (17. Bf1 $5) (17. Bf1 Rc8 18. Be3 b5 19. Qe4 Rxc3 20. Bxd4 exd4 21. Rxd4 Rc6 22. Rxd5 Re6 23. Qxe6 fxe6 24. Rxd8 Rxd8 {1-0 Saenko,O (2481)-Sirobaba,F (2404) UKR-ch24 final email 2011}) 17... Nxc3 {[%emt 0:04:26]} 18. bxc3 {[%emt 0:00:48]} Nxe2+ {[%emt 0:01:07]} 19. Qxe2 {[%emt 0:00:02]} Qc7 {[%emt 0:00:06]} 20. c4 $40 {[%emt 0:00:30][%mdl 128] Black needs to defend precisely.} a5 {[%emt 0:05:32]} 21. Bb2 {[%emt 0:03:38]} (21. Rb1 Rfd8 22. Rxd8+ Rxd8 23. bxa5 Qxa5 24. Rxb7 Bxa3 25. Be3) 21... axb4 {[%emt 0:22:32]} (21... f6 {simplifies} 22. c5 Rfd8 23. Rac1 Rxd1+ 24. Rxd1 Rd8) 22. Bxe5 {[%emt 0:01:32]} (22. Qxe5 $2 {loses.} Qxe5 (22... Qxc4 23. Qxg7#) 23. Bxe5 Ra5 $19 (23... bxa3 $2 24. Bd6 $19) (23... Rxa3 24. Rab1 $17)) 22... Qc6 {[%emt 0:00:17] [#] aiming for ...Qe6.} 23. Bxg7 $1 {[%emt 0:10:14][%csl Ob4,Ob7,Of7,Oh7] Black has weak pawns} Bf6 {[%emt 0:00:12] This costs Black the game.} (23... Rfe8 $1 $14 24. axb4 Bf8 25. Rxa8 Rxe2 26. Bxf8 h6) 24. Bxf8 $18 {[%emt 0:06:35]} Kxf8 {[%emt 0:00:06]} 25. Ra2 {[%emt 0:00:32]} bxa3 {[%emt 0:03:00]} 26. Qd3 {[%emt 0:01:51][%csl LRa3,LRh7]} Bb2 {[%emt 0:04:27]} 27. Qxh7 {[%emt 0:04:03][%cal Oa2b2] [#] Hoping for Rxb2!.} Qg6 {[%emt 0:01:43]} 28. Qxg6 {[%emt 0:02:00]} fxg6 {[%emt 0:00:05][%mdl 4096] Endgame KRR-KRB} 29. Rd7 {[%emt 0:00:55]} b6 {[%emt 0:04:28]} 30. Rd6 {[%emt 0:00:59][%csl LRb6,LRg6]} Rc8 {[%emt 0:00:22]} 31. Rxb6 {[%emt 0:00:46]} Rxc4 {[%emt 0:00:04][%cal Rc4c1]} 32. g3 {[%emt 0:00:17]} (32. Rxg6 $2 Rc1#) 32... Rc2 $2 {[%emt 0:01:12]} (32... Kg7 33. Ra6 Rc5) 33. Rxg6 {[%emt 0:00:46]} Kf7 {[%emt 0:00:14]} 34. Rb6 {[%emt 0:00:31]} Kg7 {[%emt 0:00:05]} 35. Rb3 {[%emt 0:00:17]} Rc4 {[%emt 0:00:19]} 36. Raxa3 {[%emt 0:00:16]} Bxa3 {[%emt 0:00:06]} 37. Rxa3 {[%emt 0:00:02] KR-KR. White is 3 pawns up.} Kg6 {[%emt 0:00:07]} 38. Kg2 {[%emt 0:00:08]} Rb4 {[%emt 0:00:06]} 39. h3 {[%emt 0:00:16][%cal Bh2h3,Bh3h4,Bh4h5][%mdl 32]} Kg5 {[%emt 0:00:05]} 40. Ra5+ {[%emt 0:00:04]} Kg6 {[%emt 0:00:05]} 41. g4 {[%emt 0:00:05][%cal Bg3g4,Bg4g5,Bg5g6][%mdl 32] f3 would kill now.} Rb3 {[%emt 0:00:04]} 42. f3 {[%emt 0:00:07]} Rb4 {[%emt 0:00:06]} 43. h4 {[%emt 0:00:07]} Rc4 {[%emt 0:00:04]} 44. Ra6+ {[%emt 0:00:05] White mates.} Kf7 {[%emt 0:00:04]} 45. Kg3 {[%emt 0:00:05]} Rb4 {[%emt 0:00:05]} 46. g5 {[%emt 0:00:07]} Rc4 {[%emt 0:00:04]} 47. h5 {[%emt 0:00:10]} Rc5 {[%emt 0:00:04]} 48. Kg4 {[%emt 0:00:05]} Rc4+ {[%emt 0:00:03]} 49. f4 {[%emt 0:00:04]} Rc1 {[%emt 0:00:03]} 50. g6+ {[%emt 0:00:25]} Kg7 {[%emt 0:00:10]} 51. Kg5 {[%emt 0:00:50]} Rg1+ {[%emt 0:00:12]} 52. Kf5 {[%emt 0:00:05]} Kh6 {[%emt 0:03:19]} 53. Ra7 {[%emt 0:00:13] Weighted Error Value: White=0.04 (flawless) /Black=0.83  Mistake:       	---       	Black=2      Inaccurate:     	White=1     	Black=3      OK:         	White=13    	Black=12     Best:        	White=5     	---        Strong:       	White=1     	---} 1-0

[Event "2nd Namma Bengaluru Open-A 2025"]
[Site "Bengaluru"]
[Date "2025.04.11"]
[Round "2.28"]
[White "Nguyen Van Huy"]
[Black "Arul Prakash N"]
[Result "1/2-1/2"]
[Annotator "ChessBase"]
[ECO "D11"]
[WhiteElo "2363"]
[BlackElo "2075"]
[PlyCount "96"]
[EventDate "2025.04.10"]
[EventType "swiss"]
[EventCountry "IND"]
[SourceTitle "playchess.com"]
[Source "ChessBase"]
[SourceQuality "1"]
[TimeControl "5400+30"]

1. d4 {[%emt 0:00:04]} d5 {[%emt 0:11:28]} 2. Nf3 {[%emt 0:00:46]} Nf6 {[%emt 0:00:10]} 3. c4 {[%emt 0:00:28]} c6 {[%emt 0:00:18]} 4. Qc2 {[%emt 0:02:04]} g6 {[%emt 0:00:36]} 5. Bf4 {[%emt 0:01:42]} Bg7 {[%emt 0:01:18]} 6. e3 {[%emt 0:00:27]} O-O {[%emt 0:02:22]} 7. Bd3 {[%emt 0:03:36]} c5 {[%emt 0:02:50]} 8. O-O {[%emt 0:09:48]} Nc6 {[%emt 0:05:32]} 9. dxc5 {[%emt 0:08:56]} Nb4 {[%emt 0:06:35]} 10. Qb3 {[%emt 0:03:15]} Nxd3 {[%emt 0:00:04]} 11. Qxd3 {[%emt 0:00:06]} Bf5 {[%emt 0:00:46]} 12. Qa3 {[%emt 0:02:00]} dxc4 {[%emt 0:00:25]} 13. Nc3 {[%emt 0:00:51]} Nd5 {[%emt 0:10:07]} 14. Be5 {[%emt 0:04:24]} f6 {[%emt 0:11:14]} 15. Nxd5 {[%emt 0:08:17]} Qxd5 {[%emt 0:01:32]} 16. Rfd1 {[%emt 0:01:30]} Bd3 {[%emt 0:02:43]} 17. Bc3 {[%emt 0:01:23]} Rfc8 {[%emt 0:04:41]} 18. Ne1 {[%emt 0:05:07]} e5 {[%emt 0:09:35]} 19. Rd2 {[%emt 0:14:52]} Bf8 {[%emt 0:04:47]} 20. Nxd3 {[%emt 0:01:18]} cxd3 {[%emt 0:00:02]} 21. Rad1 {[%emt 0:00:16]} e4 {[%emt 0:01:19]} 22. Bxf6 {[%emt 0:02:05]} Rxc5 {[%emt 0:08:17]} 23. Bc3 {[%emt 0:03:48]} a5 {[%emt 0:02:23]} 24. Qb3 {[%emt 0:02:53]} Qxb3 {[%emt 0:02:13]} 25. axb3 {[%emt 0:00:03]} Rb5 {[%emt 0:04:03]} 26. f3 {[%emt 0:00:55]} Rxb3 {[%emt 0:00:39]} 27. fxe4 {[%emt 0:00:10]} Bb4 {[%emt 0:00:28]} 28. Bxb4 {[%emt 0:03:19]} Rxb4 {[%emt 0:01:04]} 29. Rc1 {[%emt 0:00:22]} Rd8 {[%emt 0:01:26]} 30. Kf2 {[%emt 0:03:01]} Rxe4 {[%emt 0:00:16]} 31. Kf3 {[%emt 0:00:48]} Re7 {[%emt 0:00:46]} 32. e4 {[%emt 0:01:46]} Rd4 {[%emt 0:01:01]} 33. Rc5 {[%emt 0:01:17]} Rdxe4 {[%emt 0:01:19]} 34. Rxd3 {[%emt 0:01:51]} Rb4 {[%emt 0:00:19]} 35. b3 {[%emt 0:00:35]} b6 {[%emt 0:00:51]} 36. Rc6 {[%emt 0:00:09]} Kg7 {[%emt 0:00:26]} 37. g3 {[%emt 0:00:15]} Kf7 {[%emt 0:00:20]} 38. h4 {[%emt 0:00:23]} Ra7 {[%emt 0:03:21]} 39. Kg2 {[%emt 0:02:12]} b5 {[%emt 0:00:24]} 40. Rb6 {[%emt 0:00:15]} Kg7 {[%emt 0:00:56]} 41. Kh3 {[%emt 0:00:15]} Rc7 {[%emt 0:00:54]} 42. Ra6 {[%emt 0:01:26]} a4 {[%emt 0:00:02]} 43. bxa4 {[%emt 0:00:07]} bxa4 {[%emt 0:00:30]} 44. Rd8 {[%emt 0:01:42]} h5 {[%emt 0:00:46]} 45. Rd5 {[%emt 0:02:35]} Rg4 {[%emt 0:00:26]} 46. Rd3 {[%emt 0:00:37]} Rb7 {[%emt 0:00:37]} 47. Ra3 {[%emt 0:00:50]} Rbb4 {[%emt 0:00:36]} 48. Rf3 {[%emt 0:00:21]} Rb7 {[%emt 0:00:29]} 1/2-1/2

[Event "2nd Namma Bengaluru Open-A 2025"]
[Site "Bengaluru"]
[Date "2025.04.11"]
[Round "2.29"]
[White "Shahil Dey"]
[Black "Vedant Garg"]
[Result "1-0"]
[Annotator "ChessBase"]
[ECO "C55"]
[WhiteElo "2360"]
[BlackElo "2073"]
[PlyCount "87"]
[EventDate "2025.04.10"]
[EventType "swiss"]
[EventCountry "IND"]
[SourceTitle "playchess.com"]
[Source "ChessBase"]
[SourceQuality "1"]
[TimeControl "5400+30"]

1. e4 {[%emt 0:00:02]} e5 {[%emt 0:00:34]} 2. Nf3 {[%emt 0:00:13]} Nc6 {[%emt 0:00:10]} 3. Bc4 {[%emt 0:00:26]} Nf6 {[%emt 0:00:07]} 4. d3 {[%emt 0:00:08]} h6 {[%emt 0:00:04]} 5. c3 {[%emt 0:00:08]} d6 {[%emt 0:00:22]} 6. a4 {[%emt 0:00:09]} g6 {[%emt 0:00:45]} 7. a5 {[%emt 0:00:17]} a6 {[%emt 0:00:21]} 8. Qb3 {[%emt 0:03:53]} Qe7 {[%emt 0:01:18]} 9. h3 {[%emt 0:01:20]} Bg7 {[%emt 0:00:14]} 10. Be3 {[%emt 0:04:58]} O-O {[%emt 0:02:15]} 11. Nbd2 {[%emt 0:00:06]} Nd7 {[%emt 0:16:01]} 12. Qc2 {[%emt 0:12:20]} Kh8 {[%emt 0:10:49]} 13. g4 {[%emt 0:08:39]} Nc5 {[%emt 0:09:35]} 14. d4 {[%emt 0:10:15]} exd4 {[%emt 0:09:10]} 15. Nxd4 {[%emt 0:06:15]} Nxd4 {[%emt 0:05:44]} 16. cxd4 {[%emt 0:00:58]} Ne6 {[%emt 0:00:24]} 17. Bxe6 {[%emt 0:28:34]} Bxe6 {[%emt 0:09:10]} 18. d5 {[%emt 0:10:07]} Bd7 {[%emt 0:02:26]} 19. Qxc7 {[%emt 0:00:08]} f5 {[%emt 0:01:20]} 20. gxf5 {[%emt 0:00:07]} gxf5 {[%emt 0:00:09]} 21. Qb6 {[%emt 0:04:23]} Rac8 {[%emt 0:09:27]} 22. Rg1 {[%emt 0:01:22]} Qf6 {[%emt 0:06:17]} 23. Rxg7 {[%emt 0:01:33]} Qxg7 {[%emt 0:01:26]} 24. Bd4 {[%emt 0:00:01]} Rf6 {[%emt 0:00:01]} 25. Qxb7 {[%emt 0:00:51]} Rcf8 {[%emt 0:08:59]} 26. O-O-O {[%emt 0:00:47]} R8f7 {[%emt 0:01:04]} 27. Qxa6 {[%emt 0:00:33]} Ba4 {[%emt 0:01:34]} 28. b3 {[%emt 0:00:06]} Bd7 {[%emt 0:01:41]} 29. f4 {[%emt 0:00:44]} Kh7 {[%emt 0:01:26]} 30. Rg1 {[%emt 0:01:44]} Qf8 {[%emt 0:00:56]} 31. Bxf6 {[%emt 0:00:38]} Rxf6 {[%emt 0:00:01]} 32. Qa7 {[%emt 0:00:57]} Rf7 {[%emt 0:00:44]} 33. e5 {[%emt 0:00:22]} dxe5 {[%emt 0:00:30]} 34. fxe5 {[%emt 0:02:14]} Qa3+ {[%emt 0:01:30]} 35. Kc2 {[%emt 0:00:01]} f4 {[%emt 0:00:27]} 36. Ne4 {[%emt 0:00:01]} Qa2+ {[%emt 0:00:56]} 37. Kc3 {[%emt 0:00:01]} h5 {[%emt 0:00:32]} 38. Ng5+ {[%emt 0:00:10]} Kg6 {[%emt 0:00:30]} 39. Nxf7+ {[%emt 0:00:10]} Kf5 {[%emt 0:00:20]} 40. Qxd7+ {[%emt 0:00:05]} Ke4 {[%emt 0:00:03]} 41. Ng5+ {[%emt 0:00:41]} Ke3 {[%emt 0:00:08]} 42. Qa7+ {[%emt 0:00:03]} Ke2 {[%emt 0:00:17]} 43. Qa6+ {[%emt 0:00:04]} Ke3 {[%emt 0:00:14]} 44. Qd3+ {[%emt 0:00:15]} 1-0

[Event "2nd Namma Bengaluru Open-A 2025"]
[Site "Bengaluru"]
[Date "2025.04.11"]
[Round "2.30"]
[White "Subhayan Kundu"]
[Black "Mrudul Dehankar"]
[Result "1/2-1/2"]
[Annotator "ChessBase"]
[ECO "B12"]
[WhiteElo "2356"]
[BlackElo "2068"]
[PlyCount "97"]
[EventDate "2025.04.10"]
[EventType "swiss"]
[EventCountry "IND"]
[SourceTitle "playchess.com"]
[Source "ChessBase"]
[SourceQuality "1"]
[TimeControl "5400+30"]

1. e4 {[%emt 0:08:20]} c6 {[%emt 0:00:24]} 2. d4 {[%emt 0:00:25]} d5 {[%emt 0:00:06]} 3. e5 {[%emt 0:00:37]} Bf5 {[%emt 0:00:17]} 4. Nd2 {[%emt 0:00:22]} e6 {[%emt 0:00:47]} 5. Nb3 {[%emt 0:00:13]} Nd7 {[%emt 0:00:54]} 6. Nf3 {[%emt 0:00:07]} Ne7 {[%emt 0:00:40]} 7. Be2 {[%emt 0:00:07]} Nc8 {[%emt 0:01:57]} 8. O-O {[%emt 0:00:20]} a5 {[%emt 0:04:39]} 9. a4 {[%emt 0:02:17]} Ncb6 {[%emt 0:01:46]} 10. Ne1 {[%emt 0:02:31]} Be7 {[%emt 0:06:44]} 11. g4 {[%emt 0:08:23]} Be4 {[%emt 0:17:52]} 12. f3 {[%emt 0:01:46]} Bg6 {[%emt 0:00:07]} 13. f4 {[%emt 0:00:05]} f6 {[%emt 0:06:03]} 14. f5 {[%emt 0:05:59]} Bf7 {[%emt 0:01:18]} 15. Nd3 {[%emt 0:02:38]} fxe5 {[%emt 0:14:27]} 16. Nxe5 {[%emt 0:03:00]} Nxe5 {[%emt 0:07:02]} 17. dxe5 {[%emt 0:00:18]} Nc4 {[%emt 0:02:07]} 18. Bxc4 {[%emt 0:10:27]} dxc4 {[%emt 0:00:43]} 19. Qxd8+ {[%emt 0:00:09]} Rxd8 {[%emt 0:03:22]} 20. Nxa5 {[%emt 0:01:09]} Rd4 {[%emt 0:17:15]} 21. Bf4 {[%emt 0:14:00]} Bg5 {[%emt 0:05:42]} 22. Bxg5 {[%emt 0:07:43]} Rxg4+ {[%emt 0:00:02]} 23. Kf2 {[%emt 0:00:56]} Rxg5 {[%emt 0:00:08]} 24. Ke3 {[%emt 0:03:35]} exf5 {[%emt 0:06:57]} 25. Nxb7 {[%emt 0:00:27]} Ke7 {[%emt 0:01:03]} 26. a5 {[%emt 0:00:28]} Ra8 {[%emt 0:00:34]} 27. a6 {[%emt 0:05:00]} Bd5 {[%emt 0:00:13]} 28. Nc5 {[%emt 0:00:37]} Rh5 {[%emt 0:00:44]} 29. Rf2 {[%emt 0:01:37]} g6 {[%emt 0:00:23]} 30. Kd4 {[%emt 0:01:12]} Rh3 {[%emt 0:00:39]} 31. a7 {[%emt 0:00:57]} Kd8 {[%emt 0:00:31]} 32. Re2 {[%emt 0:02:29]} f4 {[%emt 0:00:28]} 33. b3 {[%emt 0:04:12]} f3 {[%emt 0:00:16]} 34. Rf2 {[%emt 0:02:38]} cxb3 {[%emt 0:00:44]} 35. cxb3 {[%emt 0:00:04]} Rh4+ {[%emt 0:00:32]} 36. Kc3 {[%emt 0:00:55]} Kc7 {[%emt 0:00:12]} 37. Ra5 {[%emt 0:03:15]} Kb6 {[%emt 0:00:46]} 38. Rfa2 {[%emt 0:00:05]} Rf4 {[%emt 0:00:19]} 39. Ra6+ {[%emt 0:00:40]} Kc7 {[%emt 0:00:05]} 40. Nd3 {[%emt 0:00:25]} Rf7 {[%emt 0:01:06]} 41. Kd4 {[%emt 0:03:15]} g5 {[%emt 0:00:26]} 42. Rc2 {[%emt 0:00:54]} h5 {[%emt 0:00:36]} 43. b4 {[%emt 0:02:55]} Kd8 {[%emt 0:00:31]} 44. b5 {[%emt 0:00:32]} Rd7 {[%emt 0:00:28]} 45. Rf2 {[%emt 0:03:04]} Rdxa7 {[%emt 0:00:27]} 46. Rxa7 {[%emt 0:00:22]} Rxa7 {[%emt 0:00:02]} 47. Nb4 {[%emt 0:00:11]} g4 {[%emt 0:00:30]} 48. bxc6 {[%emt 0:00:48]} Be6 {[%emt 0:00:18]} 49. Kc5 {[%emt 0:00:15]} 1/2-1/2